[Event "Live Chess"]
[Site "Chess.com"]
[Date "2024.06.02"]
[Round "-"]
[White "matt1979"]
[Black "TheSmoulderingMaster"]
[Result "0-1"]
[WhiteElo "1416"]
[BlackElo "1780"]
[TimeControl "300"]
[EndTime "8:08:25 PDT"]
[Termination "TheSmoulderingMaster won by resignation"]

1. f4 {[%clk 0:04:58.5]} 1... e5 {[%clk 0:04:58.4]} 2. fxe5 {[%clk 0:04:56.7]}
2... d6 {[%clk 0:04:56.2]} 3. Nf3 {[%clk 0:04:52.9]} 3... Bg4 {[%clk 0:04:54]}
4. e4 {[%clk 0:04:49]} 4... Bxf3 {[%clk 0:04:52.3]} 5. Qxf3 {[%clk 0:04:47.7]}
5... dxe5 {[%clk 0:04:50.9]} 6. Bc4 {[%clk 0:04:44.1]} 6... Nf6 {[%clk
0:04:49.1]} 7. d3 {[%clk 0:04:37.1]} 7... Nc6 {[%clk 0:04:47]} 8. O-O {[%clk
0:04:31.8]} 8... Nd4 {[%clk 0:04:45.2]} 9. Qf2 {[%clk 0:04:25.4]} 9... Bc5
{[%clk 0:04:43.1]} 10. Kh1 {[%clk 0:04:10.1]} 10... Nb3 {[%clk 0:04:36.1]} 11.
Qf3 {[%clk 0:03:58]} 11... Nxa1 {[%clk 0:04:33.6]} 12. Bg5 {[%clk 0:03:52.3]}
12... Be7 {[%clk 0:04:29.4]} 13. Qf2 {[%clk 0:03:41]} 13... Ng4 {[%clk
0:04:23.9]} 14. Qh4 {[%clk 0:03:29]} 14... Ne3 {[%clk 0:04:18]} 15. Bxf7+ {[%clk
0:03:16.2]} 15... Kd7 {[%clk 0:04:14.4]} 16. Qh3+ {[%clk 0:03:07.4]} 16... Kc6
{[%clk 0:04:11.7]} 17. Bxe7 {[%clk 0:03:02.5]} 17... Qxe7 {[%clk 0:04:09.4]} 18.
Bd5+ {[%clk 0:03:01.6]} 18... Nxd5 {[%clk 0:04:07.5]} 19. exd5+ {[%clk
0:02:57.9]} 19... Kxd5 {[%clk 0:04:06.8]} 20. Nc3+ {[%clk 0:02:54.3]} 20... Kd6
{[%clk 0:04:05.1]} 21. Rxa1 {[%clk 0:02:50.5]} 21... a6 {[%clk 0:03:59.7]} 22.
Qf3 {[%clk 0:02:47.3]} 22... c6 {[%clk 0:03:56.4]} 23. Ne4+ {[%clk 0:02:42.1]}
23... Kc7 {[%clk 0:03:54.5]} 24. Re1 {[%clk 0:02:26.8]} 24... Rhf8 {[%clk
0:03:51.1]} 25. Qe3 {[%clk 0:02:22.1]} 25... Rf4 {[%clk 0:03:46.7]} 26. Qd2
{[%clk 0:02:16.7]} 26... Raf8 {[%clk 0:03:42.4]} 27. Qe2 {[%clk 0:02:07]} 27...
Kb8 {[%clk 0:03:38.2]} 28. Ng3 {[%clk 0:02:01.7]} 28... g5 {[%clk 0:03:34.5]}
29. h3 {[%clk 0:01:54.4]} 29... g4 {[%clk 0:03:29.8]} 30. hxg4 {[%clk
0:01:51.1]} 30... Qh4+ {[%clk 0:03:27.3]} 31. Kg1 {[%clk 0:01:46.8]} 31... Qxg3
{[%clk 0:03:26]} 32. Qxe5+ {[%clk 0:01:45.6]} 32... Ka8 {[%clk 0:03:24.1]} 33.
Qe7 {[%clk 0:01:32.1]} 33... Rf2 {[%clk 0:03:12.9]} 34. Qe4 {[%clk 0:01:23.2]}
34... Rxg2+ {[%clk 0:03:10]} 35. Qxg2 {[%clk 0:01:21.5]} 35... Qxe1+ {[%clk
0:03:09.1]} 36. Kh2 {[%clk 0:01:20.3]} 36... Rf2 {[%clk 0:03:07.1]} 0-1

[Event "Live Chess"]
[Site "Chess.com"]
[Date "2024.06.02"]
[Round "-"]
[White "JohanKjeldahl"]
[Black "Zhevzh1k7"]
[Result "0-1"]
[WhiteElo "1787"]
[BlackElo "1128"]
[TimeControl "300"]
[EndTime "8:08:33 PDT"]
[Termination "Zhevzh1k7 won by resignation"]

1. e4 {[%clk 0:04:57.4]} 1... c6 {[%clk 0:04:59.3]} 2. d4 {[%clk 0:04:54.9]}
2... d5 {[%clk 0:04:58.7]} 3. Nd2 {[%clk 0:04:53.5]} 3... c5 {[%clk 0:04:52.1]}
4. exd5 {[%clk 0:04:49.8]} 4... Qxd5 {[%clk 0:04:47.2]} 5. Bc4 {[%clk
0:04:47.5]} 5... Qxd4 {[%clk 0:04:42]} 6. Ngf3 {[%clk 0:04:46.5]} 6... Qd8
{[%clk 0:04:38.8]} 7. Ne5 {[%clk 0:04:41.1]} 7... e6 {[%clk 0:04:31.4]} 8. O-O
{[%clk 0:04:38.9]} 8... Bd6 {[%clk 0:04:29.1]} 9. Qe2 {[%clk 0:04:33.3]} 9...
Nf6 {[%clk 0:04:26.6]} 10. Ndf3 {[%clk 0:04:30.7]} 10... Nbd7 {[%clk 0:04:22.5]}
11. Rd1 {[%clk 0:04:25.8]} 11... O-O {[%clk 0:04:18.2]} 12. Bg5 {[%clk
0:04:23.6]} 12... Bxe5 {[%clk 0:04:14.3]} 13. Nxe5 {[%clk 0:04:21.2]} 13... Qe7
{[%clk 0:04:06.9]} 14. Ng4 {[%clk 0:04:05.6]} 14... h6 {[%clk 0:04:02.4]} 15.
Bh4 {[%clk 0:04:01.7]} 15... a6 {[%clk 0:03:44.5]} 16. a4 {[%clk 0:03:55.5]}
16... b6 {[%clk 0:03:36.3]} 17. Qf3 {[%clk 0:03:51.2]} 17... Rb8 {[%clk
0:03:27]} 18. Nxf6+ {[%clk 0:03:28.6]} 18... Nxf6 {[%clk 0:03:23.5]} 19. Rd2
{[%clk 0:03:15.6]} 19... b5 {[%clk 0:03:15.4]} 20. axb5 {[%clk 0:03:13.4]} 20...
axb5 {[%clk 0:03:14.2]} 21. Bd3 {[%clk 0:03:09.8]} 21... c4 {[%clk 0:03:07.9]}
22. Be4 {[%clk 0:03:06.9]} 22... g5 {[%clk 0:02:47.5]} 23. Bg3 {[%clk
0:03:03.8]} 23... Nxe4 {[%clk 0:02:45]} 24. Qxe4 {[%clk 0:03:01.9]} 24... Bb7
{[%clk 0:02:32.6]} 25. Qe3 {[%clk 0:02:59.4]} 25... Rbc8 {[%clk 0:02:19.4]} 26.
Bd6 {[%clk 0:02:56.1]} 26... Qf6 {[%clk 0:02:04]} 27. Bxf8 {[%clk 0:02:52.5]}
27... Kxf8 {[%clk 0:02:02.6]} 28. c3 {[%clk 0:02:48.6]} 28... Bd5 {[%clk
0:01:46.5]} 29. Ra7 {[%clk 0:02:42.9]} 29... Ra8 {[%clk 0:01:41.8]} 30. Qc5+
{[%clk 0:02:40.4]} 30... Kg7 {[%clk 0:01:36.2]} 31. Rxa8 {[%clk 0:02:33.7]}
31... Bxa8 {[%clk 0:01:34.1]} 32. Rd8 {[%clk 0:02:31.9]} 32... Qxd8 {[%clk
0:01:31.6]} 33. h3 {[%clk 0:02:28.9]} 33... Qd5 {[%clk 0:01:27.1]} 34. Qxd5
{[%clk 0:02:15.1]} 34... Bxd5 {[%clk 0:01:27]} 35. Kf1 {[%clk 0:02:14.1]} 35...
Kf6 {[%clk 0:01:26.5]} 36. Ke2 {[%clk 0:02:13.3]} 36... Ke5 {[%clk 0:01:26.1]}
37. Ke3 {[%clk 0:02:12.6]} 37... f5 {[%clk 0:01:25]} 38. g3 {[%clk 0:02:11.6]}
38... f4+ {[%clk 0:01:23.1]} 39. gxf4+ {[%clk 0:02:09.3]} 39... gxf4+ {[%clk
0:01:22.3]} 40. Ke2 {[%clk 0:02:08.2]} 40... Ke4 {[%clk 0:01:21.2]} 41. f3+
{[%clk 0:02:06.5]} 41... Kf5 {[%clk 0:01:20.3]} 42. Kf2 {[%clk 0:02:05.3]} 42...
e5 {[%clk 0:01:19.4]} 43. Ke2 {[%clk 0:02:03.8]} 43... e4 {[%clk 0:01:18.4]} 44.
fxe4+ {[%clk 0:02:03]} 44... Bxe4 {[%clk 0:01:18.3]} 45. Kf2 {[%clk 0:02:02.2]}
45... h5 {[%clk 0:01:17]} 46. Ke2 {[%clk 0:01:59]} 46... Bd3+ {[%clk 0:01:15.3]}
47. Kf3 {[%clk 0:01:57.4]} 47... Be4+ {[%clk 0:01:13]} 48. Kf2 {[%clk 0:01:56]}
48... h4 {[%clk 0:01:10.1]} 49. Ke2 {[%clk 0:01:54.6]} 49... Bg2 {[%clk
0:01:06.3]} 50. Kf2 {[%clk 0:01:52.4]} 50... Bxh3 {[%clk 0:01:05]} 0-1

[Event "Live Chess"]
[Site "Chess.com"]
[Date "2024.06.02"]
[Round "-"]
[White "Purple1szed"]
[Black "gmnorfolk"]
[Result "0-1"]
[WhiteElo "2001"]
[BlackElo "2125"]
[TimeControl "300"]
[EndTime "8:08:51 PDT"]
[Termination "gmnorfolk won by checkmate"]

1. e4 {[%clk 0:04:57.5]} 1... c5 {[%clk 0:04:58.8]} 2. c3 {[%clk 0:04:56.7]}
2... e6 {[%clk 0:04:55.7]} 3. d4 {[%clk 0:04:55.8]} 3... d5 {[%clk 0:04:55.6]}
4. exd5 {[%clk 0:04:55.4]} 4... exd5 {[%clk 0:04:54.7]} 5. Nf3 {[%clk
0:04:55.2]} 5... Nc6 {[%clk 0:04:53.3]} 6. Bd3 {[%clk 0:04:54.7]} 6... Bd6
{[%clk 0:04:50.8]} 7. O-O {[%clk 0:04:53.5]} 7... Nge7 {[%clk 0:04:49.4]} 8. Be3
{[%clk 0:04:53.2]} 8... h6 {[%clk 0:04:44.1]} 9. dxc5 {[%clk 0:04:52.4]} 9...
Bc7 {[%clk 0:04:41.9]} 10. Nbd2 {[%clk 0:04:51.5]} 10... Bg4 {[%clk 0:04:38.7]}
11. h3 {[%clk 0:04:47.6]} 11... Bh5 {[%clk 0:04:37.3]} 12. Re1 {[%clk
0:04:43.4]} 12... O-O {[%clk 0:04:35.8]} 13. Be2 {[%clk 0:04:40.7]} 13... Nf5
{[%clk 0:04:32.2]} 14. Nd4 {[%clk 0:04:37.7]} 14... Nxe3 {[%clk 0:04:30.4]} 15.
fxe3 {[%clk 0:04:35.2]} 15... Bg6 {[%clk 0:04:26.2]} 16. N2f3 {[%clk 0:04:32.3]}
16... Qe7 {[%clk 0:04:22.4]} 17. Bd3 {[%clk 0:04:22.9]} 17... Qxc5 {[%clk
0:04:16.3]} 18. Rc1 {[%clk 0:04:17.6]} 18... Rae8 {[%clk 0:04:11.5]} 19. b4
{[%clk 0:04:10.5]} 19... Qe7 {[%clk 0:04:08.6]} 20. Qd2 {[%clk 0:04:07.9]} 20...
Ne5 {[%clk 0:04:04.6]} 21. Nxe5 {[%clk 0:04:04.9]} 21... Qxe5 {[%clk 0:04:02.1]}
22. Nf3 {[%clk 0:04:03.6]} 22... Qg3 {[%clk 0:04:00.9]} 23. Bxg6 {[%clk
0:04:00.2]} 23... fxg6 {[%clk 0:03:59.8]} 24. Qxd5+ {[%clk 0:03:58.2]} 24... Kh8
{[%clk 0:03:55.1]} 25. a4 {[%clk 0:03:54.5]} 25... Re5 {[%clk 0:03:42]} 26. Qxb7
{[%clk 0:03:52.3]} 26... Rg5 {[%clk 0:03:33.1]} 27. Nxg5 {[%clk 0:03:32]} 27...
Qh2# {[%clk 0:03:29.6]} 0-1

[Event "Live Chess"]
[Site "Chess.com"]
[Date "2024.06.02"]
[Round "-"]
[White "Step-S"]
[Black "f4nomore"]
[Result "0-1"]
[WhiteElo "1227"]
[BlackElo "1284"]
[TimeControl "300"]
[EndTime "8:09:08 PDT"]
[Termination "f4nomore won by checkmate"]

1. e4 {[%clk 0:04:56.7]} 1... g6 {[%clk 0:04:59.2]} 2. d4 {[%clk 0:04:55.1]}
2... Bg7 {[%clk 0:04:58.1]} 3. c4 {[%clk 0:04:54]} 3... d6 {[%clk 0:04:57.7]} 4.
f3 {[%clk 0:04:52.1]} 4... Nf6 {[%clk 0:04:56.5]} 5. Nc3 {[%clk 0:04:49.6]} 5...
Nbd7 {[%clk 0:04:55.4]} 6. Nge2 {[%clk 0:04:41.6]} 6... O-O {[%clk 0:04:54.1]}
7. Ng3 {[%clk 0:04:39.8]} 7... b6 {[%clk 0:04:53]} 8. Be2 {[%clk 0:04:36.1]}
8... Bb7 {[%clk 0:04:51.8]} 9. O-O {[%clk 0:04:33.1]} 9... c5 {[%clk 0:04:50.5]}
10. d5 {[%clk 0:04:19.6]} 10... h5 {[%clk 0:04:47.2]} 11. Bd3 {[%clk 0:04:14]}
11... Nh7 {[%clk 0:04:45.2]} 12. Re1 {[%clk 0:03:45.8]} 12... Ne5 {[%clk
0:04:41.8]} 13. Bc2 {[%clk 0:03:39]} 13... Nxc4 {[%clk 0:04:38.7]} 14. b4 {[%clk
0:03:32.9]} 14... Bxc3 {[%clk 0:04:32.2]} 15. Re2 {[%clk 0:03:21]} 15... Bxa1
{[%clk 0:04:27.6]} 16. Qd3 {[%clk 0:03:04.4]} 16... Bd4+ {[%clk 0:04:17.8]} 17.
Kh1 {[%clk 0:02:59.1]} 17... Ne5 {[%clk 0:04:15.9]} 18. Qd1 {[%clk 0:02:51.5]}
18... Bc8 {[%clk 0:04:03.7]} 19. f4 {[%clk 0:02:25.2]} 19... Ng4 {[%clk
0:04:01.1]} 20. f5 {[%clk 0:02:18]} 20... Nf2+ {[%clk 0:03:57.8]} 21. Rxf2
{[%clk 0:02:14.4]} 21... Bxf2 {[%clk 0:03:54.5]} 22. fxg6 {[%clk 0:02:03.3]}
22... fxg6 {[%clk 0:03:50.7]} 23. Nxh5 {[%clk 0:01:55.3]} 23... gxh5 {[%clk
0:03:38.1]} 24. Qxh5 {[%clk 0:01:53.3]} 24... Qe8 {[%clk 0:03:33.3]} 25. Qe2
{[%clk 0:01:28.8]} 25... Qf7 {[%clk 0:03:26.5]} 26. e5 {[%clk 0:01:07.6]} 26...
dxe5 {[%clk 0:03:21.3]} 27. Qxe5 {[%clk 0:00:44.8]} 27... Bd4 {[%clk 0:03:18]}
28. Qe4 {[%clk 0:00:36.3]} 28... Qf1# {[%clk 0:03:13.9]} 0-1

[Event "Live Chess"]
[Site "Chess.com"]
[Date "2024.06.02"]
[Round "-"]
[White "E2E4colchester"]
[Black "elephantgerrald"]
[Result "0-1"]
[WhiteElo "1031"]
[BlackElo "871"]
[TimeControl "300"]
[EndTime "8:09:17 PDT"]
[Termination "elephantgerrald won by checkmate"]

1. d4 {[%clk 0:04:54.6]} 1... d5 {[%clk 0:04:59]} 2. c4 {[%clk 0:04:51.5]} 2...
dxc4 {[%clk 0:04:57.6]} 3. e4 {[%clk 0:04:50.3]} 3... Nf6 {[%clk 0:04:47.5]} 4.
Nc3 {[%clk 0:04:48.7]} 4... e5 {[%clk 0:04:43.6]} 5. dxe5 {[%clk 0:04:45.3]}
5... Qxd1+ {[%clk 0:04:40.3]} 6. Kxd1 {[%clk 0:04:42.9]} 6... Ng4 {[%clk
0:04:34]} 7. f3 {[%clk 0:04:40.1]} 7... Nf2+ {[%clk 0:04:21.4]} 8. Kc2 {[%clk
0:04:33.3]} 8... Nxh1 {[%clk 0:03:39.8]} 9. Nh3 {[%clk 0:04:31.6]} 9... Bxh3
{[%clk 0:03:36.7]} 10. Bxc4 {[%clk 0:04:27.2]} 10... Bxg2 {[%clk 0:03:31.4]} 11.
Bf4 {[%clk 0:04:23.5]} 11... Nf2 {[%clk 0:03:24]} 12. e6 {[%clk 0:04:14.8]}
12... fxe6 {[%clk 0:03:19]} 13. Bxe6 {[%clk 0:04:13.4]} 13... Bxf3 {[%clk
0:03:08.7]} 14. Rf1 {[%clk 0:04:07]} 14... Bxe4+ {[%clk 0:03:05]} 15. Nxe4
{[%clk 0:03:59.7]} 15... Nxe4 {[%clk 0:03:02.7]} 16. Rd1 {[%clk 0:03:51.7]}
16... Bd6 {[%clk 0:02:42.9]} 17. Bxd6 {[%clk 0:03:46.3]} 17... Nxd6 {[%clk
0:02:34.2]} 18. Bd5 {[%clk 0:03:38.6]} 18... Nc6 {[%clk 0:02:18.3]} 19. Re1+
{[%clk 0:03:34.9]} 19... Ne7 {[%clk 0:02:07.3]} 20. Bxb7 {[%clk 0:03:32.8]}
20... Nxb7 {[%clk 0:02:04.5]} 21. Re6 {[%clk 0:03:27.5]} 21... Rf8 {[%clk
0:01:47.1]} 22. Kb3 {[%clk 0:03:25.1]} 22... Rf6 {[%clk 0:01:30.5]} 23. Re4
{[%clk 0:03:22.8]} 23... Rf7 {[%clk 0:01:24.3]} 24. Rc4 {[%clk 0:03:21.4]} 24...
O-O-O {[%clk 0:01:17]} 25. h3 {[%clk 0:03:19.6]} 25... Na5+ {[%clk 0:01:09]} 26.
Kc3 {[%clk 0:03:16.9]} 26... Nxc4 {[%clk 0:01:07.3]} 27. Kxc4 {[%clk 0:03:16.1]}
27... Rf4+ {[%clk 0:01:06.4]} 28. Kb3 {[%clk 0:03:14.6]} 28... Rd3+ {[%clk
0:00:52.5]} 29. Kc2 {[%clk 0:03:13.5]} 29... Rff3 {[%clk 0:00:48.5]} 30. a3
{[%clk 0:03:06.2]} 30... Rde3 {[%clk 0:00:40.3]} 31. h4 {[%clk 0:03:03.3]} 31...
Re2+ {[%clk 0:00:38.9]} 32. Kb1 {[%clk 0:03:02.2]} 32... Nd5 {[%clk 0:00:34.9]}
33. h5 {[%clk 0:03:00.3]} 33... Nc3+ {[%clk 0:00:24.3]} 34. bxc3 {[%clk
0:02:51.9]} 34... Rf1# {[%clk 0:00:17.6]} 0-1

[Event "Live Chess"]
[Site "Chess.com"]
[Date "2024.06.02"]
[Round "-"]
[White "Frankie_Badacsonyi"]
[Black "nitrofish07"]
[Result "1/2-1/2"]
[WhiteElo "2363"]
[BlackElo "2087"]
[TimeControl "300"]
[EndTime "8:09:19 PDT"]
[Termination "Game drawn by agreement"]

1. Nf3 {[%clk 0:04:56.6]} 1... Nf6 {[%clk 0:04:58.9]} 2. g3 {[%clk 0:04:54.4]}
2... g6 {[%clk 0:04:58.1]} 3. Bg2 {[%clk 0:04:53.4]} 3... Bg7 {[%clk 0:04:57.9]}
4. O-O {[%clk 0:04:52.2]} 4... O-O {[%clk 0:04:57.7]} 5. c4 {[%clk 0:04:51.3]}
5... c6 {[%clk 0:04:56.7]} 6. Nc3 {[%clk 0:04:50.9]} 6... d5 {[%clk 0:04:56]} 7.
cxd5 {[%clk 0:04:50.3]} 7... cxd5 {[%clk 0:04:55.9]} 8. d4 {[%clk 0:04:49.6]}
8... Nc6 {[%clk 0:04:53.7]} 9. Ne5 {[%clk 0:04:49.2]} 9... Bf5 {[%clk
0:04:48.4]} 10. Nxc6 {[%clk 0:04:46.7]} 10... bxc6 {[%clk 0:04:48.3]} 11. Bf4
{[%clk 0:04:45.7]} 11... Ne4 {[%clk 0:04:43.4]} 12. Rc1 {[%clk 0:04:41.9]} 12...
e6 {[%clk 0:04:33.5]} 13. b3 {[%clk 0:04:37.6]} 13... Nxc3 {[%clk 0:04:24.4]}
14. Rxc3 {[%clk 0:04:34.8]} 14... Rc8 {[%clk 0:04:24.3]} 15. Qd2 {[%clk
0:04:26.9]} 15... Qb6 {[%clk 0:04:22.1]} 16. Be3 {[%clk 0:04:03.6]} 16... e5
{[%clk 0:04:13.5]} 17. dxe5 {[%clk 0:03:59.1]} 17... c5 {[%clk 0:03:48.4]} 18.
Bxd5 {[%clk 0:03:54.8]} 18... Bxe5 {[%clk 0:03:44.3]} 19. Rcc1 {[%clk 0:03:54]}
19... Rfd8 {[%clk 0:03:41.2]} 20. Rfd1 {[%clk 0:03:31.9]} 20... Be6 {[%clk
0:03:27.3]} 21. Bg5 {[%clk 0:03:07.9]} 21... Rxd5 {[%clk 0:03:22.8]} 22. Qxd5
{[%clk 0:03:05.7]} 22... Bxd5 {[%clk 0:03:21.5]} 23. Rxd5 {[%clk 0:03:05.2]}
23... Bf6 {[%clk 0:03:15.9]} 24. Be3 {[%clk 0:02:58.3]} 24... Qe6 {[%clk
0:03:06.1]} 25. Rdxc5 {[%clk 0:02:55.3]} 25... Rxc5 {[%clk 0:03:04.4]} 26. Rxc5
{[%clk 0:02:55.1]} 26... Kg7 {[%clk 0:03:02.4]} 27. Ra5 {[%clk 0:02:48.7]} 27...
a6 {[%clk 0:02:56.9]} 28. Ra4 {[%clk 0:02:47.5]} 28... h6 {[%clk 0:02:51.6]} 29.
h4 {[%clk 0:02:45.5]} 29... Qd6 {[%clk 0:02:47.8]} 30. Kg2 {[%clk 0:02:41.3]}
30... Qd5+ {[%clk 0:02:43.5]} 31. f3 {[%clk 0:02:35.5]} 31... Qe6 {[%clk
0:02:37.8]} 32. Kf2 {[%clk 0:02:28.6]} 32... Qc6 {[%clk 0:02:36.5]} 33. Rc4
{[%clk 0:02:24.9]} 33... Qb5 {[%clk 0:02:32.9]} 34. Ra4 {[%clk 0:02:23.4]} 34...
Be7 {[%clk 0:02:31.2]} 35. Rc4 {[%clk 0:02:13.3]} 35... h5 {[%clk 0:02:26.1]}
36. Kg2 {[%clk 0:02:09.9]} 36... Bd8 {[%clk 0:02:19.6]} 37. Bd4+ {[%clk
0:02:03.7]} 37... Bf6 {[%clk 0:02:17.7]} 38. Be3 {[%clk 0:02:02]} 38... Qd5
{[%clk 0:02:15.8]} 39. Kf2 {[%clk 0:02:00.4]} 39... a5 {[%clk 0:02:06.7]} 40.
Ra4 {[%clk 0:01:59.2]} 40... Be7 {[%clk 0:02:01.1]} 41. Rc4 {[%clk 0:01:57]}
41... Bb4 {[%clk 0:01:59]} 42. Rd4 {[%clk 0:01:51.6]} 42... Qe5 {[%clk
0:01:54.3]} 43. Re4 {[%clk 0:01:48.1]} 43... Qb8 {[%clk 0:01:43.4]} 44. Rc4
{[%clk 0:01:46.1]} 44... Be7 {[%clk 0:01:40.8]} 45. Re4 {[%clk 0:01:44.5]} 45...
Bf6 {[%clk 0:01:39.9]} 46. Rc4 {[%clk 0:01:43.7]} 1/2-1/2

[Event "Live Chess"]
[Site "Chess.com"]
[Date "2024.06.02"]
[Round "-"]
[White "Demyan7777"]
[Black "Dashman93"]
[Result "1-0"]
[WhiteElo "1916"]
[BlackElo "2123"]
[TimeControl "300"]
[EndTime "8:09:25 PDT"]
[Termination "Demyan7777 won by resignation"]

1. e4 {[%clk 0:04:56.7]} 1... Nc6 {[%clk 0:04:59.4]} 2. d4 {[%clk 0:04:53.1]}
2... e5 {[%clk 0:04:59.3]} 3. d5 {[%clk 0:04:51.9]} 3... Nce7 {[%clk 0:04:58.6]}
4. Nf3 {[%clk 0:04:50.1]} 4... Nh6 {[%clk 0:04:58.5]} 5. Nxe5 {[%clk 0:04:47.5]}
5... Ng6 {[%clk 0:04:56.9]} 6. Nxg6 {[%clk 0:04:45.8]} 6... hxg6 {[%clk
0:04:56.8]} 7. c4 {[%clk 0:04:44.6]} 7... Bc5 {[%clk 0:04:55.9]} 8. Nc3 {[%clk
0:04:42]} 8... d6 {[%clk 0:04:55.4]} 9. Be3 {[%clk 0:04:39.8]} 9... Bxe3 {[%clk
0:04:54.2]} 10. fxe3 {[%clk 0:04:39.1]} 10... Ng4 {[%clk 0:04:54.1]} 11. Qd2
{[%clk 0:04:29.8]} 11... Qg5 {[%clk 0:04:52.6]} 12. O-O-O {[%clk 0:04:22.9]}
12... Qxe3 {[%clk 0:04:50.5]} 13. h3 {[%clk 0:04:17.8]} 13... Qxd2+ {[%clk
0:04:46.7]} 14. Rxd2 {[%clk 0:04:17.1]} 14... Ne5 {[%clk 0:04:46.6]} 15. Be2
{[%clk 0:04:15]} 15... Bd7 {[%clk 0:04:45.8]} 16. Rf1 {[%clk 0:04:12.6]} 16...
O-O-O {[%clk 0:04:45]} 17. b3 {[%clk 0:04:11.5]} 17... f6 {[%clk 0:04:44]} 18.
Bd1 {[%clk 0:04:09.2]} 18... g5 {[%clk 0:04:43.2]} 19. Ne2 {[%clk 0:04:01.6]}
19... g4 {[%clk 0:04:41.9]} 20. hxg4 {[%clk 0:04:00.2]} 20... Bxg4 {[%clk
0:04:41.8]} 21. Nd4 {[%clk 0:03:57.3]} 21... Bxd1 {[%clk 0:04:40.2]} 22. Rfxd1
{[%clk 0:03:54.7]} 22... Rh4 {[%clk 0:04:39.3]} 23. Ne6 {[%clk 0:03:52.5]} 23...
Rdh8 {[%clk 0:04:34.2]} 24. Nxg7 {[%clk 0:03:46.2]} 24... Rxe4 {[%clk
0:04:32.6]} 25. Rf2 {[%clk 0:03:42.7]} 25... f5 {[%clk 0:04:11]} 26. Nxf5 {[%clk
0:03:35.2]} 26... Kd7 {[%clk 0:04:06.4]} 27. Nd4 {[%clk 0:03:21.4]} 27... Rg8
{[%clk 0:03:57.6]} 28. Kb2 {[%clk 0:03:14.2]} 28... Re3 {[%clk 0:03:54.1]} 29.
Kc2 {[%clk 0:03:01.4]} 29... Reg3 {[%clk 0:03:52.6]} 30. Rdd2 {[%clk 0:03:00.1]}
30... a6 {[%clk 0:03:46.2]} 31. Nf5 {[%clk 0:02:58.1]} 31... R3g5 {[%clk
0:03:42.7]} 32. Nd4 {[%clk 0:02:55.7]} 32... R8g7 {[%clk 0:03:39.9]} 33. Ne6
{[%clk 0:02:54.5]} 33... Ng4 {[%clk 0:03:35.2]} 34. Rfe2 {[%clk 0:02:48.9]}
34... Ne5 {[%clk 0:03:34.3]} 35. Nxg7 {[%clk 0:02:46.4]} 35... Rxg7 {[%clk
0:03:34]} 36. Re3 {[%clk 0:02:45.4]} 36... b5 {[%clk 0:03:30.5]} 37. cxb5 {[%clk
0:02:42.4]} 37... axb5 {[%clk 0:03:30.4]} 38. Kb2 {[%clk 0:02:23.9]} 38... b4
{[%clk 0:03:27.4]} 39. Re4 {[%clk 0:02:20.5]} 39... Rg3 {[%clk 0:03:25.9]} 40.
Kb1 {[%clk 0:02:08.9]} 40... Nd3 {[%clk 0:03:23.5]} 41. Kc2 {[%clk 0:02:06]}
41... Nc5 {[%clk 0:03:19.8]} 42. Rxb4 {[%clk 0:02:02.8]} 42... Rg5 {[%clk
0:03:17.9]} 43. g4 {[%clk 0:01:59.8]} 43... Re5 {[%clk 0:03:14.4]} 44. Rf4
{[%clk 0:01:56.1]} 44... Re3 {[%clk 0:03:12.2]} 45. Rg2 {[%clk 0:01:49.3]} 45...
Nd3 {[%clk 0:03:08.5]} 46. Rf7+ {[%clk 0:01:47.8]} 46... Kd8 {[%clk 0:03:06.6]}
47. Kd2 {[%clk 0:01:39.8]} 47... Rh3 {[%clk 0:03:05.3]} 48. g5 {[%clk
0:01:36.9]} 48... Ne5 {[%clk 0:03:04.4]} 49. Rf5 {[%clk 0:01:18.4]} 49... Ke7
{[%clk 0:02:58.9]} 50. g6 {[%clk 0:01:17]} 50... Rh8 {[%clk 0:02:53.4]} 51. g7
{[%clk 0:01:12]} 51... Rg8 {[%clk 0:02:53.3]} 52. Ke3 {[%clk 0:01:10.4]} 52...
Nd7 {[%clk 0:02:48.6]} 53. Rfg5 {[%clk 0:01:04.3]} 53... Nf6 {[%clk 0:02:47.1]}
54. Rc2 {[%clk 0:01:00.9]} 54... Kd7 {[%clk 0:02:45.4]} 55. a4 {[%clk
0:00:51.9]} 55... Rb8 {[%clk 0:02:43]} 56. Rc3 {[%clk 0:00:44.3]} 56... Re8+
{[%clk 0:02:38.1]} 57. Kf3 {[%clk 0:00:39.3]} 57... Rg8 {[%clk 0:02:33.1]} 58.
Kf4 {[%clk 0:00:37.6]} 58... Kc8 {[%clk 0:02:29.4]} 59. Kf5 {[%clk 0:00:36.1]}
59... Nxd5 {[%clk 0:02:27.3]} 60. Rd3 {[%clk 0:00:34.5]} 60... c6 {[%clk
0:02:22.8]} 61. Rxd5 {[%clk 0:00:33.5]} 61... cxd5 {[%clk 0:02:22]} 62. Kf6
{[%clk 0:00:33.2]} 62... Rd8 {[%clk 0:02:19.5]} 63. g8=Q {[%clk 0:00:31.6]} 1-0

[Event "Live Chess"]
[Site "Chess.com"]
[Date "2024.06.02"]
[Round "-"]
[White "Ferrarifan27"]
[Black "HoarseyHorsey"]
[Result "1-0"]
[WhiteElo "2146"]
[BlackElo "1586"]
[TimeControl "300"]
[EndTime "8:09:30 PDT"]
[Termination "Ferrarifan27 won by resignation"]

1. e4 {[%clk 0:04:58.7]} 1... c5 {[%clk 0:04:58.6]} 2. Nf3 {[%clk 0:04:56.4]}
2... e6 {[%clk 0:04:57.9]} 3. d4 {[%clk 0:04:55.4]} 3... cxd4 {[%clk 0:04:57.3]}
4. Nxd4 {[%clk 0:04:55.3]} 4... Nf6 {[%clk 0:04:56.5]} 5. Bd3 {[%clk 0:04:52.6]}
5... Nc6 {[%clk 0:04:55.5]} 6. Nxc6 {[%clk 0:04:50.9]} 6... bxc6 {[%clk
0:04:55.4]} 7. O-O {[%clk 0:04:48.4]} 7... d5 {[%clk 0:04:52.5]} 8. e5 {[%clk
0:04:44.4]} 8... Nd7 {[%clk 0:04:50.6]} 9. f4 {[%clk 0:04:43.5]} 9... Be7 {[%clk
0:04:49.2]} 10. Nc3 {[%clk 0:04:42.1]} 10... O-O {[%clk 0:04:48]} 11. Kh1 {[%clk
0:04:41.3]} 11... Bb7 {[%clk 0:04:40.1]} 12. Rf3 {[%clk 0:04:35.1]} 12... f6
{[%clk 0:04:36.9]} 13. exf6 {[%clk 0:04:30.5]} 13... Nxf6 {[%clk 0:04:35.7]} 14.
Qe2 {[%clk 0:04:28.5]} 14... c5 {[%clk 0:04:33.7]} 15. Qxe6+ {[%clk 0:04:26.7]}
15... Kh8 {[%clk 0:04:32.2]} 16. Re3 {[%clk 0:04:10.1]} 16... d4 {[%clk
0:04:05]} 17. Qxe7 {[%clk 0:04:08.1]} 17... dxe3 {[%clk 0:04:03.8]} 18. Qxb7
{[%clk 0:04:06.8]} 18... Qd4 {[%clk 0:03:36.4]} 19. Qf3 {[%clk 0:04:04.6]} 19...
Rae8 {[%clk 0:03:27.4]} 20. Ne2 {[%clk 0:04:03.1]} 20... Qb4 {[%clk 0:03:03.8]}
21. c3 {[%clk 0:03:46.7]} 21... Qb6 {[%clk 0:02:59.4]} 22. Bxe3 {[%clk
0:03:45.5]} 22... Qxb2 {[%clk 0:02:50.9]} 23. Rb1 {[%clk 0:03:43.5]} 23... Qa3
{[%clk 0:02:49.9]} 24. g4 {[%clk 0:03:26.2]} 24... Nd7 {[%clk 0:02:40]} 25. Qh3
{[%clk 0:03:16.7]} 25... h6 {[%clk 0:02:38.5]} 26. g5 {[%clk 0:03:14.2]} 26...
Rxe3 {[%clk 0:02:23.6]} 27. Qxe3 {[%clk 0:03:11.3]} 27... h5 {[%clk 0:02:16.1]}
28. Qh3 {[%clk 0:03:08.8]} 28... c4 {[%clk 0:02:07.9]} 29. Qxh5+ {[%clk
0:03:05.3]} 29... Kg8 {[%clk 0:02:06.9]} 30. Bxc4+ {[%clk 0:03:04.3]} 1-0